bitfinex-derivatives/quotes_BTCF0:USTF0_20250827
["timestamp","ask_amount","ask_price","bid_price","bid_amount"]
[1756273815061,0.71132437,111470.0,111460.0,0.06433168]
[1756273815262,0.71132437,111470.0,111460.0,0.04773168]
[1756273815673,0.71232437,111470.0,111460.0,0.04773168]
[1756273816069,0.71332437,111470.0,111460.0,0.04773168]
[1756273816871,0.97414674,111470.0,111460.0,0.04773168]
[1756273817272,0.71332437,111470.0,111460.0,0.04683168]
[1756273818675,0.99425903,111470.0,111460.0,0.01808168]
[1756273819277,0.99425903,111470.0,111460.0,0.04683168]
[1756273819464,0.47261429,111470.0,111460.0,0.04683168]
[1756273819664,0.99425903,111470.0,111460.0,0.04683168]
[1756273821074,1.82693903,111470.0,111460.0,0.04683168]
[1756273821564,2.07693903,111470.0,111460.0,0.04683168]
[1756273821772,2.07693903,111470.0,111460.0,0.01808168]
[1756273822273,2.07693903,111470.0,111460.0,0.04683168]
[1756273826176,2.07693903,111470.0,111460.0,0.06343168]
[1756273826476,2.07693903,111470.0,111460.0,0.04683168]
[1756273831780,2.07693903,111470.0,111460.0,0.06343168]
[1756273833175,0.1012678,111450.0,111440.0,0.03799]
[1756273833381,1.81611254,111450.0,111440.0,0.0166]
[1756273833880,1.81611254,111450.0,111440.0,0.0009]
[1756273834582,1.81611254,111450.0,111440.0,0.0019]
[1756273834782,1.83649686,111450.0,111440.0,0.0019]
[1756273835087,1.83649686,111450.0,111440.0,0.03265]
[1756273835983,1.83749686,111450.0,111440.0,0.03165]
[1756273837382,1.83849686,111450.0,111440.0,0.02965]
[1756273837584,1.83849686,111450.0,111440.0,0.02875]
[1756273839177,1.00609686,111450.0,111440.0,0.04535]
[1756273839483,1.83837686,111450.0,111440.0,0.06782]
[1756273840081,1.83837686,111450.0,111440.0,0.12337]
[1756273843683,1.83837686,111450.0,111440.0,0.04535]
[1756273843884,1.00609686,111450.0,111440.0,0.12337]
[1756273844083,1.83829686,111450.0,111440.0,0.12337]
[1756273845484,1.00609686,111450.0,111440.0,0.12337]
[1756273845785,1.83829686,111450.0,111440.0,0.12337]
[1756273846181,1.83829686,111450.0,111440.0,0.06782]
[1756273846676,0.48001212,111450.0,111440.0,0.35923]
[1756273846883,1.21215449,111450.0,111440.0,0.65303237]
[1756273847084,1.21215449,111450.0,111440.0,0.65393237]
[1756273849385,0.95133212,111450.0,111440.0,0.65393237]
[1756273849585,1.21215449,111450.0,111440.0,0.65393237]
[1756273849785,0.38003449,111450.0,111440.0,0.65393237]
[1756273849987,1.21207449,111450.0,111440.0,0.65393237]
[1756273851488,1.21207449,111450.0,111440.0,0.39311]
[1756273851688,1.21207449,111450.0,111440.0,0.65393237]
[1756273852388,0.38003449,111450.0,111440.0,0.65393237]
[1756273852585,1.21199449,111450.0,111440.0,0.65393237]
[1756273853689,1.21199449,111450.0,111440.0,0.39311]
[1756273853891,1.21199449,111450.0,111440.0,0.65393237]
[1756273855392,1.21199449,111450.0,111440.0,0.39311]
[1756273855591,1.21199449,111450.0,111440.0,0.65393237]
[1756273857187,1.21199449,111450.0,111440.0,0.39311]
[1756273857381,0.11921212,111450.0,111440.0,0.91475474]
[1756273857584,0.11210212,111450.0,111440.0,1.27555474]
[1756273857787,0.94390212,111450.0,111440.0,1.36528044]
[1756273858896,0.94290212,111450.0,111440.0,1.36528044]
[1756273859096,0.94190212,111450.0,111440.0,1.36728044]
[1756273859697,0.11010212,111450.0,111440.0,1.36728044]
[1756273859897,0.94182212,111450.0,111440.0,1.36728044]
[1756273860798,0.94182212,111450.0,111440.0,1.36528044]
[1756273861402,0.94182212,111450.0,111440.0,1.36728044]
[1756273861896,0.0897098,111460.0,111440.0,1.36828044]
[1756273862093,1.18225217,111460.0,111450.0,0.76464237]
[1756273862294,1.18936217,111460.0,111450.0,0.50382]
[1756273862494,1.18936217,111460.0,111450.0,0.76464237]
[1756273862692,1.18936217,111460.0,111450.0,0.50382]
[1756273862898,1.81542454,111460.0,111450.0,0.40384237]
[1756273863094,1.81542454,111460.0,111450.0,0.14302]
[1756273864001,1.81542454,111460.0,111450.0,0.11004]
[1756273864200,2.06542454,111460.0,111450.0,0.02928]
[1756273865295,1.89279483,111460.0,111450.0,0.02928]
[1756273865606,1.89479483,111460.0,111450.0,0.02928]
[1756273865798,1.64579483,111460.0,111450.0,0.02928]
[1756273866904,1.64579483,111460.0,111450.0,0.04563]
[1756273867107,1.64579483,111460.0,111450.0,0.0681]
[1756273868007,1.64579483,111460.0,111450.0,0.14573]
[1756273868204,1.2977798,111460.0,111450.0,0.14573]
[1756273868409,1.64579483,111460.0,111450.0,0.14573]
[1756273869105,1.64551483,111460.0,111450.0,0.14573]
[1756273871204,1.28471483,111460.0,111450.0,0.14573]
[1756273871405,1.64551483,111460.0,111450.0,0.14573]
[1756273871598,1.2974998,111460.0,111450.0,0.14573]
[1756273871798,1.64551483,111460.0,111450.0,0.14573]
[1756273872807,1.64551483,111460.0,111450.0,0.08747]
[1756273873103,1.64551483,111460.0,111450.0,0.02928]
[1756273873496,0.1012679,111450.0,111440.0,0.42488953]
[1756273873897,0.44928293,111450.0,111440.0,0.52414953]
[1756273874701,0.44484293,111450.0,111440.0,0.52414953]
[1756273875106,0.45028293,111450.0,111440.0,0.52414953]
[1756273875507,0.45128293,111450.0,111440.0,0.52414953]
[1756273875802,0.1032679,111450.0,111440.0,0.52414953]
[1756273876105,0.44684293,111450.0,111440.0,0.52414953]
[1756273876802,0.45128293,111450.0,111440.0,0.52414953]
[1756273877603,0.44684293,111450.0,111440.0,0.52414953]
[1756273878306,0.44684293,111450.0,111440.0,0.52324953]
[1756273880609,0.9298679,111450.0,111440.0,0.87126456]
[1756273881010,0.9298679,111450.0,111440.0,0.52324953]
[1756273882204,0.9298679,111450.0,111440.0,0.87126456]
[1756273884207,0.9298679,111450.0,111440.0,0.52324953]
[1756273884407,0.9298679,111450.0,111440.0,0.87126456]
[1756273884606,0.9298679,111450.0,111440.0,0.51046456]
[1756273885108,0.9298679,111450.0,111440.0,0.87126456]
[1756273885406,1.19084924,111450.0,111440.0,0.78423087]
[1756273886108,1.19084924,111450.0,111440.0,0.42343087]
[1756273886309,1.19084924,111450.0,111440.0,0.78423087]
[1756273889509,1.19056924,111450.0,111440.0,0.78423087]
[1756273890308,1.21474461,111450.0,111440.0,0.46498953]
[1756273890512,2.08652595,111450.0,111440.0,0.01846953]
[1756273890813,2.08652595,111450.0,111440.0,0.04807953]
[1756273892706,2.08652595,111450.0,111440.0,0.01846953]
[1756273893108,2.08652595,111450.0,111440.0,0.04807953]
[1756273893314,1.91264505,111450.0,111440.0,0.04807953]
[1756273895412,1.66264505,111450.0,111440.0,0.04807953]
[1756273895812,1.91264505,111450.0,111440.0,0.01846953]
[1756273896611,0.0897339,111430.0,111420.0,0.0847802]
[1756273896815,1.64874446,111430.0,111420.0,0.0625602]
[1756273897813,0.81826446,111430.0,111420.0,0.0635602]
[1756273898115,1.64870446,111430.0,111420.0,0.0857802]
[1756273898315,1.64870446,111430.0,111420.0,0.1416802]
[1756273899216,0.81826446,111430.0,111420.0,0.1416802]
[1756273899414,1.64870446,111430.0,111420.0,0.1625302]
[1756273900215,0.81826446,111430.0,111420.0,0.1625302]
[1756273900518,1.64866446,111430.0,111420.0,0.1625302]
[1756273900818,1.32686245,111430.0,111420.0,0.1625302]
[1756273901019,1.67494423,111430.0,111420.0,0.1625302]
[1756273904223,0.84454423,111430.0,111420.0,0.1625302]
[1756273904421,1.67490423,111430.0,111420.0,0.1625302]
[1756273913131,0.48374423,111430.0,111420.0,0.1625302]
[1756273913335,0.96574245,111430.0,111420.0,0.1625302]
[1756273913527,1.31382423,111430.0,111420.0,0.1625302]
[1756273915338,1.31382423,111430.0,111420.0,0.1295202]
[1756273915539,1.31382423,111430.0,111420.0,0.1625302]
[1756273916541,0.13566245,111430.0,111420.0,1.12141198]
[1756273916740,0.96570245,111430.0,111420.0,1.12141198]
[1756273917141,0.96566245,111430.0,111420.0,1.12141198]
[1756273917342,1.22672059,111430.0,111420.0,1.29544648]
[1756273917841,1.22672059,111430.0,111420.0,1.03438834]
[1756273919140,1.22664059,111430.0,111420.0,1.03438834]
[1756273919340,0.96558245,111430.0,111420.0,1.1214214]
[1756273920137,0.13566245,111430.0,111420.0,1.2111632]
[1756273920345,0.93930268,111430.0,111420.0,1.2111632]
[1756273920643,0.93926268,111430.0,111420.0,1.2111632]
[1756273921238,0.93926268,111430.0,111420.0,0.863072]
[1756273921542,1.28735388,111430.0,111420.0,0.7733302]
[1756273921743,1.28735388,111430.0,111420.0,0.5233302]
[1756273923645,0.93926268,111430.0,111420.0,0.5233302]
[1756273923847,1.28735388,111430.0,111420.0,0.5233302]
[1756273924643,1.28735388,111430.0,111420.0,0.4903202]
[1756273924848,1.28735388,111430.0,111420.0,0.5233302]
[1756273925248,0.93926268,111430.0,111420.0,0.5233302]
[1756273925443,1.28735388,111430.0,111420.0,0.5233302]
[1756273927347,0.10938268,111430.0,111420.0,0.5233302]
[1756273927648,0.93906268,111430.0,111420.0,0.5233302]
[1756273928749,0.9194139,111430.0,111420.0,0.5233302]
[1756273928950,0.4378251,111430.0,111420.0,0.5233302]
[1756273929150,1.2674651,111430.0,111420.0,0.5233302]
[1756273929451,0.4378251,111430.0,111420.0,0.5233302]
[1756273929649,1.2674251,111430.0,111420.0,0.613072]
[1756273929848,1.2674251,111430.0,111420.0,0.9611632]
[1756273930048,0.9193339,111430.0,111420.0,0.613072]
[1756273930852,0.9193339,111430.0,111420.0,0.5233302]
[1756273931353,0.9193339,111430.0,111420.0,0.6130722]
[1756273933254,0.9193339,111430.0,111420.0,0.5233302]
[1756273934357,1.2674251,111430.0,111420.0,0.4263602]
[1756273934551,1.2674251,111430.0,111420.0,0.0655602]
[1756273934753,1.2674251,111430.0,111420.0,0.1627102]
[1756273936156,1.2674251,111430.0,111420.0,0.1306502]
[1756273936656,1.2674251,111430.0,111420.0,0.1627102]
[1756273937757,0.9193339,111430.0,111420.0,0.1627102]
[1756273937957,1.2674251,111430.0,111420.0,0.1627102]
[1756273938558,1.2674251,111430.0,111420.0,0.5235102]
[1756273946267,1.25283485,111430.0,111420.0,0.5235102]
[1756273947370,1.16582441,111430.0,111420.0,0.78459096]
[1756273947870,0.92490668,111430.0,111420.0,0.5235102]
[1756273948069,1.18598744,111430.0,111420.0,0.78459096]
[1756273948467,1.18598744,111430.0,111420.0,0.72870096]
[1756273948865,1.18598744,111430.0,111420.0,0.71001096]
[1756273949466,1.18598744,111430.0,111420.0,0.78459096]
[1756273949869,1.18598744,111430.0,111420.0,0.4489302]
[1756273950471,1.18598744,111430.0,111420.0,0.71001096]
[1756273950972,1.18598744,111430.0,111420.0,0.4489302]
[1756273951170,1.18598744,111430.0,111420.0,0.67210096]
[1756273951370,1.18598744,111430.0,111420.0,0.31130096]
[1756273951570,1.18598744,111430.0,111420.0,0.0655602]
[1756273951772,1.18598744,111430.0,111420.0,0.0881302]
[1756273952872,1.18598744,111430.0,111420.0,0.1627102]
[1756273953470,1.18598744,111430.0,111420.0,0.42379096]
[1756273954366,1.18598744,111430.0,111420.0,0.78464943]
[1756273955676,1.18538744,111430.0,111420.0,0.52356867]
[1756273955862,1.18538744,111430.0,111420.0,0.78464943]
[1756273956174,1.18538744,111430.0,111420.0,0.52356867]
[1756273956472,1.18538744,111430.0,111420.0,0.78464943]
[1756273958678,0.92430668,111430.0,111420.0,0.52356867]
[1756273958875,1.18538744,111430.0,111420.0,0.78464943]
[1756273962381,0.35638744,111430.0,111420.0,0.78464943]
[1756273962581,0.92426668,111430.0,111420.0,1.38547219]
[1756273962781,1.18534744,111430.0,111420.0,1.38547219]
[1756273965383,1.18534744,111430.0,111420.0,1.29573019]
[1756273965585,1.18534744,111430.0,111420.0,1.03464943]
[1756273965883,1.17075757,111430.0,111420.0,1.03464943]
[1756273967086,1.17075757,111430.0,111420.0,1.29573019]
[1756273968186,1.17075757,111430.0,111420.0,1.03464943]
[1756273969188,1.15059454,111430.0,111420.0,1.03464943]
[1756273969486,1.15059454,111430.0,111420.0,1.12439153]
[1756273970285,1.15059454,111430.0,111420.0,0.77356867]
[1756273970587,1.15059454,111430.0,111420.0,1.03464943]
[1756273971486,0.88951378,111430.0,111420.0,1.03464943]
[1756273971688,1.15059454,111430.0,111420.0,1.03464943]
[1756273972286,1.15059454,111430.0,111420.0,1.12439143]
[1756273973984,0.88951378,111430.0,111420.0,1.12439143]
[1756273974188,1.15059454,111430.0,111420.0,1.38547219]
[1756273975389,1.15059454,111430.0,111420.0,0.86331067]
[1756273975585,1.15059454,111430.0,111420.0,1.12439143]
[1756273976390,0.88951378,111430.0,111420.0,1.12439143]
[1756273976693,1.15059454,111430.0,111420.0,1.12439143]
[1756273976990,1.15059454,111430.0,111420.0,1.38547219]
[1756273979496,0.88951378,111430.0,111420.0,1.38547219]
[1756273979697,1.15059454,111430.0,111420.0,1.38547219]
[1756273982103,0.88951378,111430.0,111420.0,1.38547219]
[1756273982401,0.32163454,111430.0,111420.0,1.38547219]
[1756273982601,1.15051454,111430.0,111420.0,1.29573019]
[1756273983503,1.15051454,111430.0,111420.0,1.03464943]
[1756273985805,1.15051454,111430.0,111420.0,0.78464943]
[1756273986908,0.88943378,111430.0,111420.0,0.78464943]
[1756273987100,1.15051454,111430.0,111420.0,0.78464943]
[1756273990210,0.70306208,111430.0,111420.0,0.78464943]
[1756273990401,0.96414284,111430.0,111420.0,0.78464943]
[1756273990899,1.05387674,111430.0,111420.0,0.78464943]
[1756273993804,1.05387674,111430.0,111420.0,0.52356867]
[1756273994108,1.05387674,111430.0,111420.0,0.78464943]
[1756273995104,1.30387674,111430.0,111420.0,0.75258943]
[1756273995313,1.30387674,111430.0,111420.0,0.72875943]
[1756273995809,1.30387674,111430.0,111420.0,0.78533943]
[1756273996108,1.30387674,111430.0,111420.0,0.52425867]
[1756273997611,0.3397339,111430.0,111420.0,0.52425867]
[1756273997807,0.3397339,111430.0,111420.0,0.78533943]
[1756273998009,1.42957466,111430.0,111420.0,0.78533943]
[1756274003809,0.60081466,111430.0,111420.0,0.78533943]
[1756274004014,1.42957466,111430.0,111420.0,0.87508123]
[1756274004816,1.1684939,111430.0,111420.0,0.87508123]
[1756274005115,0.9184939,111430.0,111420.0,1.13616199]
[1756274005617,1.17957466,111430.0,111420.0,1.13616199]
[1756274006706,0.9184939,111430.0,111420.0,1.13616199]
[1756274006915,1.17957466,111430.0,111420.0,1.13616199]
[1756274009720,1.17957466,111430.0,111420.0,0.61400047]
[1756274009921,1.17957466,111430.0,111420.0,1.13616199]
[1756274018624,1.17957466,111430.0,111420.0,0.61400047]
[1756274018824,1.17957466,111430.0,111420.0,1.13616199]
[1756274019622,0.9813086,111430.0,111420.0,1.13616199]
[1756274020024,0.0897339,111430.0,111420.0,1.13616199]
[1756274020225,0.0897284,111440.0,111430.0,0.232604]
[1756274020426,0.0897284,111440.0,111430.0,1.11556552]
[1756274020722,0.12948294,111450.0,111440.0,0.147116]
[1756274020923,0.95812294,111450.0,111440.0,1.11555752]
[1756274023326,0.95808294,111450.0,111440.0,1.11555752]
[1756274023523,0.1096359,111450.0,111440.0,1.94415752]
[1756274023720,1.08968076,111460.0,111450.0,0.216378]
[1756274023920,0.06,111460.0,111450.0,0.85446876]
[1756274024124,1.14964076,111460.0,111450.0,0.85446876]
[1756274024625,1.16946698,111460.0,111450.0,0.85446876]
[1756274024828,0.99810382,111460.0,111450.0,0.85446876]
[1756274025027,1.25918458,111460.0,111450.0,0.85446876]
[1756274025223,1.25918458,111460.0,111450.0,0.593388]
[1756274025420,0.16954382,111460.0,111450.0,0.85446876]
[1756274025728,1.26018458,111460.0,111450.0,0.85446876]
[1756274026029,0.99910382,111460.0,111450.0,0.85446876]
[1756274026222,1.20018458,111460.0,111450.0,0.85446876]
[1756274026423,1.20118458,111460.0,111450.0,0.85446876]
[1756274032735,0.11154382,111460.0,111450.0,0.593388]
[1756274032933,0.93990382,111460.0,111450.0,0.85446876]
[1756274033134,1.20098458,111460.0,111450.0,0.593388]
[1756274033330,1.20098458,111460.0,111450.0,0.85446876]
[1756274036437,0.93990382,111460.0,111450.0,0.85446876]
[1756274036635,1.20098458,111460.0,111450.0,0.85446876]
[1756274045934,1.20098458,111460.0,111450.0,0.50367]
[1756274046341,1.20098458,111460.0,111450.0,0.76475076]
[1756274048643,1.20098458,111460.0,111450.0,0.50367]
[1756274048948,1.20098458,111460.0,111450.0,0.76475076]
[1756274051242,1.20098458,111460.0,111450.0,0.85446906]
[1756274051440,1.20098458,111460.0,111450.0,0.76475076]
[1756274051640,0.93990382,111460.0,111450.0,0.76475076]
[1756274051841,1.20062458,111460.0,111450.0,0.85446906]
[1756274052444,0.37262458,111460.0,111450.0,0.85446906]
[1756274052639,0.93954382,111460.0,111450.0,0.85446906]
[1756274052840,1.20062458,111460.0,111450.0,0.85446906]
[1756274054047,1.20062458,111460.0,111450.0,0.49366906]
[1756274054347,1.20062458,111460.0,111450.0,0.85446906]
[1756274055247,0.93954382,111460.0,111450.0,0.85446906]
[1756274055446,1.20062458,111460.0,111450.0,0.85446906]
[1756274058649,0.93954382,111460.0,111450.0,0.85446906]
[1756274058842,1.20062458,111460.0,111450.0,0.85446906]
[1756274059943,1.20062458,111460.0,111450.0,0.76475076]
[1756274065454,1.20062458,111460.0,111450.0,0.50367]
[1756274065655,1.20062458,111460.0,111450.0,0.76475076]
[1756274065856,0.93954382,111460.0,111450.0,0.76475076]
[1756274066057,1.20062458,111460.0,111450.0,0.76475076]
[1756274066752,1.20062458,111460.0,111450.0,0.40395076]
[1756274066955,1.20062458,111460.0,111450.0,0.76475076]
[1756274070158,0.37262458,111460.0,111450.0,0.85446916]
[1756274070360,1.20030458,111460.0,111450.0,0.85446916]
[1756274072569,0.93922382,111460.0,111450.0,0.85446916]
[1756274072769,1.20030458,111460.0,111450.0,0.85446916]
[1756274078574,0.93922382,111460.0,111450.0,0.85446916]
[1756274078971,0.93922382,111460.0,111450.0,0.85447306]
[1756274080473,1.20030458,111460.0,111450.0,0.40632]
[1756274080768,1.20030458,111460.0,111450.0,0.76491076]
[1756274081571,2.70030458,111460.0,111450.0,0.76491076]
[1756274081973,1.20030458,111460.0,111450.0,0.76491076]
[1756274082176,1.71138534,111460.0,111450.0,0.39011]
[1756274082369,1.45030458,111460.0,111450.0,0.02931]
[1756274083373,1.45030458,111460.0,111450.0,0.04473]
[1756274083570,1.45030458,111460.0,111450.0,0.06678]
[1756274083772,1.45030458,111460.0,111450.0,0.09964]
[1756274084076,1.45030458,111460.0,111450.0,0.12368]
[1756274085174,1.45030458,111460.0,111450.0,0.02931]
[1756274085676,1.71138534,111460.0,111450.0,0.02931]
[1756274086074,1.45030458,111460.0,111450.0,0.02931]
[1756274086470,1.46138534,111460.0,111450.0,0.02931]
[1756274086674,0.0897241,111450.0,111440.0,0.04617236]
[1756274086977,0.35080486,111450.0,111440.0,0.06159236]
[1756274089877,0.35180486,111450.0,111440.0,0.06159236]
[1756274090276,0.35280486,111450.0,111440.0,0.06159236]
[1756274095488,0.35280486,111450.0,111440.0,0.04617236]
[1756274095690,0.0897317,111440.0,111430.0,0.02788]
[1756274095883,1.8200597,111440.0,111430.0,0.02788]
[1756274096584,0.0897398,111430.0,111420.0,0.08939]
[1756274096783,0.35082056,111430.0,111420.0,0.08939]
[1756274096988,1.17806056,111430.0,111420.0,0.08939]
[1756274097386,1.17806056,111430.0,111420.0,0.12225]
[1756274098079,1.17806056,111430.0,111420.0,0.12325]
[1756274098388,1.17806056,111430.0,111420.0,0.38433076]
[1756274100190,1.17806056,111430.0,111420.0,0.12325]
[1756274100386,1.53886056,111430.0,111420.0,0.0443]
[1756274100589,1.78886056,111430.0,111420.0,0.02888]
[1756274101692,1.78886056,111430.0,111420.0,0.001]
[1756274102092,1.78886056,111430.0,111420.0,0.02888]
[1756274102692,0.96162056,111430.0,111420.0,0.02888]
[1756274102884,1.78878056,111430.0,111420.0,0.02888]
[1756274104395,0.96162056,111430.0,111420.0,0.02888]
[1756274104596,1.78882056,111430.0,111420.0,0.02888]
[1756274104796,1.78882056,111430.0,111420.0,0.0443]
[1756274105798,1.53882056,111430.0,111420.0,0.0443]
[1756274105993,1.53882056,111430.0,111420.0,0.02888]
[1756274108596,1.53882056,111430.0,111420.0,0.001]
[1756274108996,1.2777398,111430.0,111420.0,0.031]
[1756274109200,1.53882056,111430.0,111420.0,0.031]
[1756274111499,2.04990132,111430.0,111420.0,0.001]
[1756274111795,1.22270132,111430.0,111420.0,0.031]
[1756274112000,1.5276198,111430.0,111420.0,0.04682]
[1756274112200,1.53870056,111430.0,111420.0,0.04682]
[1756274112495,0.9168198,111430.0,111420.0,0.37388076]
[1756274112707,0.35082056,111430.0,111420.0,0.40657076]
[1756274112900,0.9168198,111430.0,111420.0,0.66765152]
[1756274113092,0.9168198,111430.0,111420.0,0.40657076]
[1756274113293,1.17790056,111430.0,111420.0,0.40657076]
[1756274113494,0.9168198,111430.0,111420.0,0.40657076]
[1756274113701,1.17790056,111430.0,111420.0,0.40657076]
[1756274114002,0.35082056,111430.0,111420.0,0.40657076]
[1756274114203,1.17790056,111430.0,111420.0,0.40657076]
[1756274122304,0.35082056,111430.0,111420.0,0.40657076]
[1756274122496,1.17778056,111430.0,111420.0,0.40657076]
[1756274123712,1.17778056,111430.0,111420.0,0.14549]
[1756274123912,1.17778056,111430.0,111420.0,0.40657076]
[1756274126115,1.17778056,111430.0,111420.0,0.031]
[1756274126610,1.53858056,111430.0,111420.0,0.031]
[1756274135018,2.04966132,111430.0,111420.0,0.001]
[1756274137334,1.22270132,111430.0,111420.0,0.001]
[1756274137533,2.04946132,111430.0,111420.0,0.001]
[1756274138528,2.04942132,111430.0,111420.0,0.001]
[1756274139031,1.87139762,111430.0,111420.0,0.001]
[1756274139235,1.96113742,111430.0,111420.0,0.001]
[1756274143029,1.96113742,111430.0,111420.0,0.02816]
[1756274144243,1.4389759,111430.0,111420.0,0.02816]
[1756274144431,1.13441742,111430.0,111420.0,0.02816]
[1756274144631,1.96109742,111430.0,111420.0,0.02816]
[1756274145131,1.96109742,111430.0,111420.0,0.001]
[1756274146635,1.96209742,111430.0,111420.0,0.001]
[1756274148334,0.63228221,111420.0,111410.0,0.02716]
[1756274148535,0.99308221,111420.0,111410.0,0.02716]
[1756274148730,0.99308221,111420.0,111410.0,0.04355]
[1756274149639,1.06374837,111420.0,111410.0,0.04355]
[1756274152141,1.06374837,111420.0,111410.0,0.06577]
[1756274157344,1.89014837,111420.0,111410.0,0.14397]
[1756274158245,1.36798685,111420.0,111410.0,0.14397]
[1756274158542,1.89014837,111420.0,111410.0,0.14397]
[1756274162439,1.06374837,111420.0,111410.0,0.10939]
[1756274162640,0.18078685,111420.0,111410.0,0.65505076]
[1756274162843,1.00706685,111420.0,111410.0,1.01585076]
[1756274163144,1.26814761,111420.0,111410.0,1.01585076]
[1756274163535,0.44186761,111420.0,111410.0,1.01585076]
[1756274163744,1.26814761,111420.0,111410.0,1.01585076]
[1756274164145,1.26814761,111420.0,111410.0,0.75477]
[1756274164346,1.26814761,111420.0,111410.0,1.01585076]
[1756274165346,0.44186761,111420.0,111410.0,1.01585076]
[1756274165547,1.26814761,111420.0,111410.0,1.01585076]
[1756274165850,1.26814761,111420.0,111410.0,0.76585076]
[1756274169652,1.26814761,111420.0,111410.0,0.85560506]
[1756274170048,1.26814761,111420.0,111410.0,0.76585076]
[1756274175051,0.44186761,111420.0,111410.0,0.76585076]
[1756274175252,1.26790761,111420.0,111410.0,0.76585076]
[1756274185061,1.52898837,111420.0,111410.0,0.76585076]
[1756274188362,1.52898837,111420.0,111410.0,0.50477]
[1756274188562,1.52898837,111420.0,111410.0,0.14397]
[1756274189158,1.08712076,111420.0,111410.0,0.14397]
[1756274189457,1.34820152,111420.0,111410.0,0.14397]
[1756274189660,1.79874822,111420.0,111410.0,0.06577]
[1756274189854,1.88849492,111420.0,111400.0,0.28600076]
[1756274190063,0.35083506,111410.0,111400.0,0.37160076]
[1756274190264,0.35083506,111410.0,111400.0,0.14339]
[1756274190564,0.35083506,111410.0,111400.0,0.0856]
[1756274191661,0.35083506,111410.0,111400.0,0.14339]
[1756274191962,0.35183506,111410.0,111400.0,0.14339]
[1756274192164,0.42364188,111410.0,111400.0,0.14339]
[1756274192770,0.35183506,111410.0,111400.0,0.14339]
[1756274193769,0.35383506,111410.0,111400.0,0.14339]
[1756274193972,0.37140639,111410.0,111400.0,0.14339]
[1756274195571,0.37140639,111410.0,111400.0,0.40447076]
[1756274196970,0.11032563,111410.0,111400.0,0.76527076]
[1756274197170,0.93588563,111410.0,111400.0,1.27635152]
[1756274197466,1.19696639,111410.0,111400.0,1.27635152]
[1756274197667,1.26746659,111410.0,111400.0,1.01527076]
[1756274202077,1.26746659,111410.0,111400.0,0.65447076]
[1756274206275,1.00630583,111410.0,111400.0,1.01527076]
[1756274206486,1.26738659,111410.0,111400.0,1.01527076]
[1756274209868,1.26738659,111410.0,111400.0,0.65447076]
[1756274211679,1.26738659,111410.0,111400.0,0.39339]
[1756274211879,1.26738659,111410.0,111400.0,0.65447076]
[1756274212180,1.26738659,111410.0,111400.0,0.39339]
[1756274212474,1.26738659,111410.0,111400.0,0.65447076]
[1756274215781,1.26738659,111410.0,111400.0,0.39339]
[1756274215981,1.26738659,111410.0,111400.0,0.65447076]
[1756274217079,1.26738659,111410.0,111400.0,1.01527076]
[1756274217782,1.00630583,111410.0,111400.0,1.01527076]
[1756274217986,1.26738659,111410.0,111400.0,1.01527076]
[1756274220085,1.26714659,111410.0,111400.0,1.01527076]
[1756274223589,1.26714659,111410.0,111400.0,0.75419]
[1756274223786,1.26714659,111410.0,111400.0,1.01527076]
[1756274225491,0.44190659,111410.0,111400.0,1.01527076]
[1756274225789,0.44190659,111410.0,111400.0,0.76527076]
[1756274226492,0.18082583,111410.0,111400.0,0.76527076]
[1756274226684,0.44190659,111410.0,111400.0,0.76527076]
[1756274226884,1.26698659,111410.0,111400.0,0.76527076]
[1756274227286,1.26698659,111410.0,111400.0,0.50419]
[1756274227488,1.26698659,111410.0,111400.0,0.76527076]
[1756274228292,1.26598659,111410.0,111400.0,0.76527076]
[1756274228891,1.26498659,111410.0,111400.0,0.76527076]
[1756274234290,1.26498659,111410.0,111400.0,0.50419]
[1756274234494,1.26498659,111410.0,111400.0,0.76527076]
[1756274237791,1.26498659,111410.0,111400.0,0.50419]
[1756274237997,1.26498659,111410.0,111400.0,0.14403]
[1756274239298,1.26474659,111410.0,111400.0,0.40511076]
[1756274241500,1.26474659,111410.0,111400.0,0.14403]
[1756274241700,0.43990659,111410.0,111400.0,0.14403]
[1756274241902,1.26466659,111410.0,111400.0,0.40511076]
[1756274242099,1.26466659,111410.0,111400.0,0.14403]
[1756274242299,1.26466659,111410.0,111400.0,0.40511076]
[1756274244398,1.26466659,111410.0,111400.0,0.14403]
[1756274244704,1.26466659,111410.0,111400.0,0.76591076]
[1756274245904,1.00358583,111410.0,111400.0,0.50483]
[1756274246104,1.26466659,111410.0,111400.0,0.76591076]
[1756274247502,1.26466659,111410.0,111400.0,0.40511076]
[1756274248407,1.26466659,111410.0,111400.0,0.76591076]
[1756274248807,1.26466659,111410.0,111400.0,0.40511076]
[1756274249004,1.00358583,111410.0,111400.0,0.76591076]
[1756274249214,1.26454659,111410.0,111400.0,0.76591076]
[1756274251302,1.26454659,111410.0,111400.0,0.40511076]
[1756274251502,1.00346583,111410.0,111400.0,0.40511076]
[1756274251703,1.26454659,111410.0,111400.0,0.40511076]
[1756274252207,1.26454659,111410.0,111400.0,0.76591076]
[1756274255007,1.26454659,111410.0,111400.0,0.50483]
[1756274255212,1.26454659,111410.0,111400.0,0.76591076]
[1756274257210,1.00346583,111410.0,111400.0,0.76591076]
[1756274257410,1.26454659,111410.0,111400.0,0.76591076]
[1756274258012,0.43990659,111410.0,111400.0,0.76591076]
[1756274258213,1.00326583,111410.0,111400.0,0.76591076]
[1756274258413,1.26434659,111410.0,111400.0,0.76591076]
[1756274261910,1.26434659,111410.0,111400.0,1.02699152]
[1756274263114,1.26434659,111410.0,111400.0,0.76591076]
[1756274263318,1.26434659,111410.0,111400.0,0.50483]
[1756274263614,1.00326583,111410.0,111400.0,0.76591076]
[1756274263915,0.43990659,111410.0,111400.0,0.76591076]
[1756274264118,1.26422659,111410.0,111400.0,0.76591076]
[1756274265015,0.43990659,111410.0,111400.0,0.76591076]
[1756274265216,1.26422659,111410.0,111400.0,0.76591076]
[1756274265416,0.43990659,111410.0,111400.0,0.76591076]
[1756274265616,1.26422659,111410.0,111400.0,0.76591076]
[1756274266614,1.00314583,111410.0,111400.0,0.76591076]
[1756274266916,0.43990659,111410.0,111400.0,1.02699152]
[1756274267117,1.26418659,111410.0,111400.0,1.02699152]
[1756274267412,0.43990659,111410.0,111400.0,1.02699152]
[1756274267813,0.1612545,111410.0,111400.0,1.11675002]
[1756274268019,0.9855345,111410.0,111400.0,1.11675002]
[1756274269321,0.1612545,111410.0,111400.0,1.11675002]
[1756274269520,0.1602545,111410.0,111400.0,1.11675002]
[1756274269721,0.1602545,111410.0,111400.0,1.11775002]
[1756274274524,0.1602545,111410.0,111400.0,1.02799152]
[1756274274724,0.42133526,111410.0,111400.0,1.02799152]
[1756274275719,1.24545526,111410.0,111400.0,1.02799152]
[1756274276121,1.24545526,111410.0,111400.0,0.50583]
[1756274276421,1.24545526,111410.0,111400.0,0.76691076]
[1756274280129,1.24545526,111410.0,111400.0,0.50583]